bitfinex/quotes_ETHUSD_20260130
["timestamp","ask_amount","ask_price","bid_price","bid_amount"]
[1769801888708,13.91389783,2751.7,2750.1,14.5]
[1769801888888,13.91389783,2751.7,2749.8,0.90915553]
[1769801889427,13.91389783,2751.7,2749.7,14.5]
[1769801889602,13.91389783,2751.3,2749.7,14.5]
[1769801889881,0.1024,2751.1,2749.7,14.5]
[1769801890525,13.91389783,2751.1,2749.0,0.2893883]
[1769801890686,13.91389783,2750.8,2749.0,0.2893883]
[1769801890886,0.1024,2750.8,2749.9,0.001]
[1769801891822,0.1024,2751.0,2749.4,14.5]
[1769801891988,0.1024,2750.8,2749.4,15.40928507]
[1769801892324,0.1024,2750.8,2749.5,13.43524647]
[1769801892498,0.9087777,2751.0,2749.5,13.43524647]
[1769801892824,0.9087777,2751.0,2749.7,13.43524647]
[1769801893608,0.9087777,2751.0,2749.9,13.43524647]
[1769801894022,3.7371501,2751.3,2749.9,13.43524647]
[1769801894209,17.54864793,2751.3,2749.7,0.90916889]
[1769801894401,17.54864793,2751.3,2749.6,0.9092057]
[1769801894725,17.54864793,2751.3,2749.7,0.90918689]
[1769801894932,17.54864793,2751.3,2749.2,12.93579889]
[1769801894933,0.1024,2750.9,2749.2,12.93579889]
[1769801895108,0.761,2750.8,2749.2,12.93579889]
[1769801895311,0.761,2750.8,2749.3,17.07240627]
[1769801895496,0.761,2750.8,2749.4,0.90927066]
[1769801895829,0.761,2750.8,2749.2,13.84515346]
[1769801896010,0.761,2750.8,2749.3,0.90931899]
[1769801896404,0.90885956,2750.7,2749.3,0.90931899]
[1769801896601,0.90885956,2750.7,2749.3,14.34456546]
[1769801897528,3.63438124,2751.7,2749.3,15.10556546]
[1769801897728,0.1024,2751.6,2749.3,15.10556546]
[1769801898043,0.1024,2751.4,2749.5,13.43524647]
[1769801898581,0.1024,2751.2,2749.6,14.34446962]
[1769801899362,0.90866136,2751.3,2749.6,14.34446962]
[1769801899575,0.1024,2751.2,2749.6,14.34446962]
[1769801899964,0.90866136,2751.3,2749.6,14.34446962]
[1769801900166,0.90866136,2751.3,2749.7,13.43524647]
[1769801900689,3.63464544,2751.4,2749.7,13.43524647]
[1769801900971,0.1024,2751.3,2749.7,0.90916648]
[1769801901473,0.1024,2751.3,2749.7,14.34441295]
[1769801903088,0.90869438,2751.2,2749.7,14.34441295]
[1769801903239,1.73674612,2751.2,2749.7,14.34441295]
[1769801904089,1.73674612,2751.2,2749.9,0.001]
[1769801905425,15.54824395,2751.2,2749.9,0.001]
[1769801905589,1.73674612,2751.2,2749.9,0.001]
[1769801906096,1.73674612,2751.2,2749.9,13.43624647]
[1769801906305,1.73674612,2751.2,2750.0,13.43524647]
[1769801906523,1.73674612,2751.2,2749.9,0.001]
[1769801907124,1.73674612,2751.2,2749.2,12.93579889]
[1769801907125,13.91389783,2751.1,2749.3,0.27148834]
[1769801907413,13.91389783,2751.1,2749.3,1.18080584]
[1769801908289,13.91389783,2751.1,2749.4,0.9092809]
[1769801908488,0.1024,2750.9,2749.4,0.9092809]
[1769801908688,0.1024,2750.9,2749.3,0.27148834]
[1769801908890,0.1024,2750.7,2749.3,0.27148834]
[1769801909709,13.91389783,2750.7,2749.3,0.27148834]
[1769801910982,14.72039043,2750.6,2749.3,0.27148834]
[1769801911230,0.1024,2750.4,2749.3,0.27148834]
[1769801913231,0.90899174,2750.3,2749.3,0.27148834]
[1769801915403,0.1024,2750.3,2749.3,0.27148834]
[1769801916232,0.1024,2750.3,2749.3,14.61604348]
[1769801916437,10.70454144,2751.2,2749.3,14.61604348]
[1769801916438,3.6354037,2750.8,2749.3,14.61604348]
[1769801916733,0.90885956,2750.7,2749.5,13.48406735]
[1769801916936,0.90885956,2750.7,2749.5,0.001]
[1769801917236,0.90884134,2750.8,2749.5,13.48506735]
[1769801917438,0.91072741,2751.1,2749.7,13.43936956]
[1769801917640,10.6231,2752.4,2750.0,13.43936956]
[1769801917839,0.002,2752.4,2750.2,13.43936956]
[1769801918039,0.002,2752.5,2750.4,13.43936956]
[1769801918224,0.91028085,2752.5,2750.6,13.43936956]
[1769801918426,0.91028085,2752.5,2750.8,13.43936956]
[1769801918627,0.002,2752.6,2751.0,13.43936956]
[1769801918834,0.002,2753.6,2751.3,13.43936956]
[1769801919031,0.90992539,2753.6,2751.3,13.43936956]
[1769801919349,0.19038758,2754.2,2752.3,13.54176956]
[1769801919638,0.002,2754.2,2752.5,13.43936956]
[1769801919856,0.90971619,2754.2,2752.5,13.43936956]
[1769801920511,0.90971619,2754.2,2752.6,3.09739853]
[1769801921040,0.1024,2754.1,2752.6,3.09739853]
[1769801921214,0.90971619,2754.2,2752.6,3.09739853]
[1769801921536,0.90777051,2754.0,2752.6,3.09739853]
[1769801922243,0.1024,2753.9,2752.6,3.09739853]
[1769801922428,0.84337582,2753.9,2752.0,2.55891882]
[1769801922643,0.1024,2753.9,2752.0,2.55891882]
[1769801922866,0.1024,2753.9,2752.0,16.90671076]
[1769801923149,0.1024,2753.9,2752.1,15.99828838]
[1769801923313,0.1024,2753.9,2752.2,15.99828838]
[1769801923516,0.1024,2753.7,2752.3,2.55891882]
[1769801924336,0.1024,2753.7,2751.7,13.43936956]
[1769801924525,0.1024,2753.7,2751.8,0.83850652]
[1769801924727,0.1024,2753.7,2751.8,14.27787608]
[1769801924930,0.1024,2753.7,2751.9,14.27787608]
[1769801925233,13.08278868,2753.6,2751.4,13.43936956]
[1769801925535,0.1024,2753.4,2751.5,0.53664417]
[1769801925733,0.1024,2753.2,2751.5,0.53664417]
[1769801926138,12.84921838,2753.0,2750.6,3.63554326]
[1769801926310,12.95161838,2752.9,2750.8,0.90882421]
[1769801926511,12.95161838,2752.9,2750.9,0.7705374]
[1769801927221,12.84921838,2752.5,2750.9,0.7705374]
[1769801927428,0.90829821,2752.4,2750.9,0.7705374]
[1769801927750,14.58828932,2752.3,2750.9,0.7705374]
[1769801928132,12.95161838,2752.2,2750.9,0.7705374]
[1769801928339,12.95161838,2751.9,2749.7,0.90918824]
[1769801928659,12.95161838,2751.9,2749.9,0.90912387]
[1769801928818,0.1024,2751.7,2749.5,13.44036956]
[1769801929017,12.95161838,2751.7,2749.6,0.90919137]
[1769801929225,12.95161838,2751.5,2749.5,0.001]
[1769801929657,0.1024,2751.3,2749.5,0.001]
[1769801929866,0.1024,2751.3,2749.5,13.44036956]
[1769801930165,0.1024,2751.2,2749.6,13.43936956]
[1769801930467,0.1024,2751.2,2749.5,0.001]
[1769801930636,12.95161838,2751.2,2749.5,0.001]
[1769801931142,0.1024,2751.2,2749.5,13.44036956]
[1769801931545,0.90872741,2751.1,2749.5,0.001]
[1769801931857,0.90872741,2751.1,2749.5,13.43736956]
[1769801931858,0.46460371,2751.0,2749.5,13.43736956]
[1769801932159,0.90872741,2751.1,2749.5,13.43736956]
[1769801933768,0.90872741,2751.1,2749.3,1.17168652]
[1769801934075,12.95161838,2751.0,2749.3,0.26237965]
[1769801935859,12.95161838,2750.8,2749.3,0.26237965]
[1769801936162,1.38604119,2750.7,2749.3,0.26237965]
[1769801936344,2.14704119,2750.7,2749.3,0.26237965]
[1769801936864,12.95161838,2750.6,2749.3,0.26237965]
[1769801937829,0.90892564,2750.5,2749.3,0.26237965]
[1769801938233,0.90892564,2750.5,2748.5,0.001]
[1769801938234,12.84921838,2750.1,2748.5,0.001]
[1769801938525,14.13414022,2750.0,2748.5,0.001]
[1769801938629,12.95161838,2749.9,2748.5,0.001]
[1769801939159,2.181,2749.8,2748.5,0.001]
[1769801939350,0.761,2749.7,2748.5,0.001]
[1769801939931,0.90922315,2749.6,2748.5,0.001]
[1769801940126,0.53071158,2749.5,2748.5,0.001]
[1769801940863,13.37992996,2749.5,2747.9,0.25895785]
[1769801941364,0.53071158,2749.5,2747.9,1.16871876]
[1769801941768,0.53071158,2749.5,2748.7,0.001]
[1769801941937,0.90928929,2749.4,2748.7,0.001]
[1769801942289,0.50771581,2749.3,2747.9,0.25895785]
[1769801942484,12.95161838,2749.2,2747.9,0.25895785]
[1769801942881,0.1024,2749.2,2747.9,0.25895785]
[1769801943787,0.50771581,2749.3,2747.9,1.16872025]
[1769801943980,0.90938852,2749.1,2747.9,14.60808981]
[1769801944184,0.1024,2749.8,2747.9,14.60808981]
[1769801945079,0.1024,2749.6,2747.9,14.60808981]
[1769801946104,13.7584746,2749.5,2747.9,1.16872025]
[1769801946266,13.7584746,2749.5,2747.3,0.90996548]
[1769801946267,0.1024,2748.9,2747.3,0.90996548]
[1769801946463,13.62138075,2748.5,2747.1,0.25335908]
[1769801946662,19.86297619,2749.0,2747.1,0.25335908]
[1769801946899,0.1024,2748.8,2747.1,12.9130549]
[1769801948185,0.1024,2748.6,2747.1,0.25335908]
[1769801948891,13.72378075,2748.6,2747.1,0.25335908]
[1769801949092,13.72378075,2748.6,2747.1,1e-08]
[1769801949280,13.72378075,2748.6,2746.6,12.65969582]
[1769801949687,0.1024,2748.6,2746.6,12.65969582]
[1769801949991,0.90958704,2748.5,2746.8,12.65969582]
[1769801950191,13.72378075,2748.2,2745.8,12.65969582]
[1769801950402,13.72378075,2748.0,2745.8,12.65969582]
[1769801951462,14.30250164,2748.0,2745.8,12.65969582]
[1769801952095,0.90978565,2747.9,2745.8,12.65969582]
[1769801952297,1.88514299,2747.8,2745.8,12.65969582]
[1769801952666,0.1024,2747.7,2745.8,12.65969582]
[1769801952908,0.1024,2747.4,2745.6,0.25135601]
[1769801953207,3.22586388,2747.8,2745.6,12.91105183]
[1769801953208,0.1024,2747.6,2745.6,12.91105183]
[1769801953401,0.1024,2747.6,2745.7,12.65969582]
[1769801954091,0.9099181,2747.5,2745.7,13.57020132]
[1769801954280,0.9099181,2747.5,2747.0,0.001]
[1769801954479,0.9099181,2747.5,2745.7,13.57020132]
[1769801954795,0.9099181,2747.5,2745.7,12.65969582]
[1769801955107,0.45495905,2747.4,2745.7,12.65969582]
[1769801955702,0.45495905,2747.4,2745.6,0.25135601]
[1769801955895,14.30250164,2747.3,2745.6,0.25135601]
[1769801956081,0.91001747,2747.2,2745.2,12.65969582]
[1769801956505,0.1024,2747.1,2745.2,12.65969582]
[1769801956671,13.72378075,2747.1,2744.9,0.91077793]
[1769801956867,14.30250164,2747.1,2744.9,13.57047375]
[1769801957088,0.1024,2746.9,2744.9,12.65969582]
[1769801957291,14.30250164,2746.9,2744.9,12.65969582]
[1769801957596,7.68671964,2747.2,2744.5,13.5705875]
[1769801957597,13.72378075,2746.6,2744.5,13.5705875]
[1769801957774,1.37237807,2746.5,2744.6,13.57056577]
[1769801957967,14.99375882,2746.5,2744.6,12.65969582]
[1769801958164,0.91028255,2746.4,2744.6,12.65969582]
[1769801958375,0.91028255,2746.4,2744.6,13.57057371]
[1769801958591,0.91028255,2746.4,2744.6,13.57057332]
[1769801958796,0.91028255,2746.4,2744.8,12.65969582]
[1769801960104,3.6411302,2746.7,2745.0,12.65969582]
[1769801960467,3.6411302,2746.7,2744.0,0.24876268]
[1769801960468,13.62138075,2746.2,2744.0,0.24876268]
[1769801960672,14.30250164,2746.1,2744.0,12.9084585]
[1769801961006,14.30250164,2746.1,2744.0,0.24876268]
[1769801961180,0.1024,2745.9,2744.0,0.24876268]
[1769801961590,14.30250164,2745.9,2744.0,1.01076268]
[1769801961794,13.72378075,2745.7,2744.0,0.24876268]
[1769801961982,13.72378075,2745.5,2744.0,0.24876268]
[1769801962182,0.1024,2745.3,2743.5,0.762]
[1769801962387,0.1024,2745.3,2743.5,0.74302101]
[1769801962575,0.1024,2745.3,2743.5,0.762]
[1769801963388,0.1024,2745.3,2743.4,12.65969582]
[1769801963600,0.1024,2745.3,2743.5,0.762]
[1769801963800,0.1024,2745.3,2743.5,13.42169582]
[1769801964009,0.1024,2745.3,2743.7,12.65969582]
[1769801964215,0.91068046,2745.2,2743.7,12.65969582]
[1769801965511,0.91068046,2745.2,2743.1,12.65969582]
[1769801965806,0.91068046,2745.2,2743.4,0.91126544]
[1769801965977,0.91068046,2745.2,2743.5,12.65969582]
[1769801966179,0.91068046,2745.2,2743.2,0.763]
[1769801966180,0.91068046,2745.2,2743.7,13.5708609]
[1769801966409,3.64272184,2745.3,2743.8,12.65969582]
[1769801966611,0.91068046,2745.2,2743.8,12.65969582]
[1769801967510,3.64248594,2745.4,2743.8,12.65969582]
[1769801967713,3.64214121,2745.7,2743.9,12.65969582]
[1769801968017,3.64214121,2745.7,2743.8,12.65969582]
[1769801968317,13.72378075,2745.6,2743.0,12.65969582]
[1769801968615,14.30250164,2745.6,2743.5,13.57093714]
[1769801968777,13.72378075,2745.6,2743.5,12.65969582]
[1769801968984,13.72378075,2745.4,2743.5,0.763]
[1769801969182,13.72378075,2745.4,2743.0,12.65969582]
[1769801969407,0.1024,2745.1,2743.0,13.42269582]
[1769801969595,13.62138075,2744.9,2743.0,12.65969582]
[1769801969796,0.1024,2744.9,2743.4,12.65969582]
[1769801970306,0.91081317,2744.8,2743.1,0.763]
[1769801970696,0.91081317,2744.8,2743.3,0.91128715]
[1769801971000,0.91081317,2744.8,2743.4,0.91127611]
[1769801971618,0.91081317,2744.8,2743.4,13.57097193]
[1769801971806,0.91081317,2744.8,2743.3,0.763]
[1769801971999,0.45540659,2744.7,2743.4,0.763]
[1769801972186,0.91087954,2744.6,2743.4,1.67427523]
[1769801972386,0.91087954,2744.6,2743.4,0.763]
[1769801972720,0.91087954,2744.6,2743.4,1.67427742]
[1769801972926,3.64334021,2744.8,2743.4,14.33397324]
[1769801973223,0.91061411,2745.4,2743.6,12.65969582]
[1769801974314,3.64238857,2745.5,2743.7,13.57087415]
[1769801974618,3.64245647,2745.6,2743.7,13.57087415]
[1769801975383,0.91051462,2745.8,2743.7,13.57087415]
[1769801975589,0.9124672,2745.9,2743.7,13.57087415]
[1769801975826,0.9124672,2745.9,2744.0,12.65969582]
[1769801976189,0.002,2745.9,2744.2,12.65969582]
[1769801976693,13.10998099,2745.3,2743.6,0.763]
[1769801976918,13.10998099,2745.3,2743.2,13.77441124]
[1769801977123,13.10998099,2745.0,2742.7,17.42042028]
[1769801977420,1.3109981,2744.9,2742.9,0.91142592]
[1769801977588,1.3109981,2744.9,2743.1,0.9113616]
[1769801977785,1.3109981,2744.9,2742.7,0.91149309]
[1769801977786,13.41048378,2744.8,2742.7,0.91149309]
[1769801977992,13.41048378,2744.8,2742.8,0.763]
[1769801978194,14.21893013,2744.7,2742.9,0.763]
[1769801978415,1.79647156,2744.6,2742.9,0.763]
[1769801979294,0.57872089,2744.5,2742.5,0.91155804]
[1769801979497,0.57872089,2744.5,2742.6,0.763]
[1769801979498,13.30808378,2744.3,2742.6,0.763]
[1769801979698,13.30808378,2744.3,2742.1,0.2674644]
[1769801979699,13.30808378,2744.2,2742.1,0.2674644]
[1769801979920,1.38868047,2744.1,2742.7,0.763]
[1769801980540,0.91107871,2744.0,2742.7,0.763]
[1769801980924,0.91107871,2744.0,2742.7,1.67450757]
[1769801981149,0.91107871,2744.0,2742.7,1.67450479]
[1769801981512,0.91107871,2744.0,2742.7,0.763]
[1769801982211,0.91107871,2744.0,2742.7,1.67450717]
[1769801982447,0.91107871,2744.0,2742.7,0.763]
[1769801982645,3.64431486,2744.2,2742.7,0.763]
[1769801982809,3.64431486,2744.2,2740.9,21.2421]
[1769801982810,13.30808378,2743.7,2741.6,3.64749098]
[1769801983125,13.30808378,2743.7,2742.2,0.763]
[1769801983330,1.33080838,2743.6,2742.2,0.763]
[1769801983838,0.1024,2744.1,2742.3,12.87586932]
[1769801984041,0.91094592,2744.4,2742.7,0.91150631]
[1769801984204,0.91094592,2744.4,2742.8,0.763]
[1769801984408,0.91094592,2744.4,2742.8,13.63886932]
[1769801984643,3.64375012,2744.5,2742.9,13.78731341]
[1769801984839,3.64338543,2744.8,2743.1,12.87586932]
[1769801985008,13.30808378,2744.7,2743.0,14.5]
[1769801985205,0.1024,2744.6,2743.0,14.5]
[1769801985508,13.41048378,2744.6,2743.0,14.5]
[1769801985728,1.34104838,2744.5,2743.0,14.5]
[1769801986327,14.64913216,2744.5,2743.1,0.763]
[1769801986656,0.91094592,2744.4,2743.1,0.763]
[1769801988266,0.91094592,2744.4,2743.1,1.67437727]
[1769801988708,3.6437837,2744.7,2743.2,0.763]
[1769801988910,0.36437837,2744.6,2743.2,0.763]
[1769801989109,3.6437837,2744.8,2743.2,0.763]
[1769801989751,3.6437837,2744.8,2743.3,14.5]
[1769801990211,0.91077999,2744.9,2743.3,14.5]
[1769801990409,0.91077999,2744.9,2743.3,27.37686932]
[1769801990608,3.64311996,2745.0,2743.3,27.37686932]
[1769801990848,3.64311996,2745.0,2743.4,13.78714729]
[1769801991066,0.91054778,2745.6,2743.4,13.78714729]
[1769801991645,0.002,2745.7,2744.1,12.87586932]
[1769801991945,0.91253019,2745.7,2744.1,12.87586932]
[1769801992357,0.91253019,2745.7,2744.2,14.5]
[1769801992563,0.91253019,2745.7,2744.3,0.763]
[1769801992730,0.002,2745.7,2744.4,0.91094592]
[1769801993048,13.31008378,2745.7,2744.5,0.763]
[1769801993248,1.33100838,2745.6,2744.5,15.263]
[1769801993874,14.63909216,2745.6,2743.9,0.91109443]
[1769801994036,14.63909216,2745.6,2744.0,1.67406525]
[1769801994422,14.63909216,2745.6,2744.1,14.5]
[1769801994756,13.30808378,2745.1,2743.7,0.763]
[1769801995049,0.91068046,2745.2,2743.7,0.763]
[1769801995254,0.91068046,2745.2,2743.8,14.5]
[1769801996030,3.64246017,2745.4,2743.8,14.5]
[1769801996230,3.64246017,2745.4,2743.9,0.763]
[1769801996936,0.91056729,2745.6,2744.0,13.78694803]
[1769801997452,0.002,2745.7,2744.2,12.87586932]
[1769801998259,0.91251759,2745.7,2744.2,12.87586932]
[1769801998451,0.91251759,2745.7,2744.3,15.263]
[1769801999036,0.002,2745.7,2744.4,0.91094592]
[1769801999359,0.002,2745.7,2744.5,0.763]
[1769801999732,0.002,2745.7,2744.6,14.5]
[1769802000164,0.002,2745.7,2744.7,0.763]
[1769802000947,0.002,2745.7,2744.8,0.91081317]
[1769802001158,13.30808378,2745.5,2743.7,0.91114541]
[1769802001346,0.1024,2745.5,2744.2,0.91100879]
[1769802001666,0.002,2745.7,2744.7,0.91083723]
[1769802001869,0.002,2745.7,2744.5,3.64363917]
[1769802002035,0.002,2745.7,2744.7,0.91083661]
[1769802002534,0.002,2745.7,2744.6,0.91085544]
[1769802002755,0.002,2745.7,2744.2,18.14402474]
[1769802002756,13.31008378,2745.7,2744.2,18.14402474]
[1769802003042,0.91054778,2745.6,2744.6,1.67386287]
[1769802003369,0.91054778,2745.6,2744.4,0.91092443]
[1769802003589,13.31008378,2745.5,2744.3,0.91097226]
[1769802003871,13.76555767,2745.5,2744.4,0.91094331]
[1769802004044,13.76555767,2745.5,2744.6,0.91087697]
[1769802004045,0.45747389,2745.5,2744.6,0.91087697]
[1769802004542,0.45747389,2745.5,2744.2,15.263]
[1769802004757,13.76555767,2745.5,2744.3,0.91095693]
[1769802004957,2.37822485,2745.4,2744.2,15.263]
[1769802005134,0.91061431,2745.4,2744.3,0.91097912]
[1769802005340,0.002,2745.5,2744.4,6.35]
[1769802005770,0.002,2745.5,2744.5,6.35]
[1769802006140,0.9125846,2745.5,2744.6,0.763]
[1769802006766,0.9125846,2745.5,2744.5,6.35]
[1769802006958,0.002,2745.5,2744.8,0.91081317]
[1769802007162,13.29025689,2745.5,2744.3,0.91095607]
[1769802007460,13.29025689,2745.5,2743.9,13.77441811]
[1769802007461,14.61728258,2745.4,2744.0,0.763]
[1769802007870,14.61728258,2745.4,2744.0,15.263]
[1769802008369,1.32902569,2745.4,2744.5,0.91090849]
[1769802008667,13.29025689,2745.5,2744.0,14.5]
[1769802008846,13.29025689,2745.5,2744.0,15.263]
[1769802009053,14.198871,2745.4,2744.0,16.17407468]
[1769802009950,14.198871,2745.4,2744.0,14.5]
[1769802010158,15.07258964,2745.3,2744.0,15.263]
[1769802010681,15.07258964,2745.3,2744.0,14.5]
[1769802010854,15.07258964,2745.3,2743.8,0.86662364]
[1769802011274,13.28825689,2745.1,2743.8,0.86662364]
[1769802012976,13.28825689,2744.7,2743.8,0.86662364]
[1769802013161,0.91091273,2744.5,2743.8,0.86662364]
[1769802015287,0.91077999,2744.9,2743.8,0.86662364]
[1769802015496,0.91077999,2744.9,2743.8,1.7777636]
[1769802016501,0.91077999,2744.9,2744.0,0.001]
[1769802016663,0.91077999,2744.9,2743.8,0.86662364]
[1769802016987,0.45539,2744.8,2743.8,0.86662364]
[1769802017400,0.91084635,2744.7,2743.8,0.86662364]
[1769802017768,14.19910324,2744.7,2743.8,0.86662364]
[1769802017967,14.19910324,2744.7,2743.6,0.001]
[1769802021030,13.28825689,2744.5,2743.1,14.5]
[1769802021295,14.19940201,2743.8,2742.1,0.0191415]
[1769802021461,14.19940201,2743.8,2742.3,0.763]
[1769802021667,0.91114512,2743.8,2742.4,14.5]
[1769802021898,1.66550488,2743.8,2742.4,14.5]
[1769802022402,0.91104551,2744.1,2742.5,12.88974528]
[1769802022763,0.91104551,2744.1,2742.6,12.88974528]
[1769802023068,0.91086926,2744.7,2743.0,12.88974528]
[1769802023276,0.91071363,2745.1,2743.3,12.88974528]
[1769802023475,0.91071363,2745.1,2743.5,12.88974528]
[1769802023869,0.91071363,2745.1,2743.6,14.5]
[1769802024899,14.19897052,2745.1,2743.6,14.5]
[1769802025072,14.19897052,2745.1,2743.7,0.763]
[1769802025270,14.19897052,2745.1,2743.0,12.88974528]
[1769802025474,13.28825689,2744.9,2743.2,0.91134304]
[1769802025675,13.28825689,2744.9,2743.3,0.91131096]
[1769802025870,13.28825689,2744.9,2743.4,15.41127237]
[1769802026071,13.28825689,2744.9,2743.4,14.5]
[1769802026575,13.28825689,2744.7,2742.6,0.91152674]
[1769802026777,13.28825689,2744.3,2742.3,4.0]
[1769802027006,13.28825689,2744.3,2742.7,0.763]
[1769802027191,13.28825689,2743.9,2742.3,4.0]
[1769802027374,13.28825689,2743.7,2742.2,0.763]
[1769802027567,0.91114512,2743.8,2741.9,0.763]
[1769802027568,13.28825689,2743.5,2741.9,0.763]
[1769802027870,13.28825689,2743.5,2742.1,0.93084601]
[1769802028276,0.1024,2743.7,2742.1,0.93084601]
[1769802028978,0.91114512,2743.8,2742.3,0.001]
[1769802029392,3.6445805,2743.9,2742.3,0.001]
[1769802029593,3.64394139,2744.3,2742.3,12.89074528]
[1769802029775,0.1024,2744.2,2742.4,12.88974528]
[1769802030103,13.39065689,2744.2,2742.3,0.001]
[1769802030274,13.39065689,2744.2,2742.3,12.89074528]
[1769802031102,13.39065689,2744.2,2742.4,0.763]
[1769802031400,13.39065689,2744.2,2742.4,12.88974528]
[1769802031602,0.91104551,2744.1,2742.5,0.91157702]
[1769802031804,14.1993024,2744.1,2742.6,0.763]
[1769802032699,0.91104551,2744.1,2742.6,13.65274528]
[1769802032900,0.91104551,2744.1,2742.6,0.763]
[1769802033218,1.78434845,2744.0,2742.4,0.91160725]
[1769802033511,0.91111192,2743.9,2742.5,12.88974528]
[1769802034110,14.19928802,2744.2,2742.6,12.88974528]
[1769802034298,13.28825689,2744.2,2742.7,12.88974528]
[1769802034501,14.19927948,2744.2,2742.9,12.88974528]
[1769802034892,13.28825689,2744.2,2742.9,12.88974528]
[1769802035087,14.1992763,2744.2,2742.9,12.88974528]
[1769802035294,0.91101941,2744.2,2742.9,12.88974528]
[1769802035487,0.91091273,2744.5,2743.0,0.91141086]
[1769802035690,14.19916962,2744.5,2743.1,0.763]
[1769802035889,1.9171536,2744.4,2743.1,0.763]
[1769802036145,1.9171536,2744.4,2741.9,12.88974528]
[1769802036146,13.28825689,2744.2,2741.9,12.88974528]
[1769802036318,13.28825689,2743.8,2742.2,1.67467175]
[1769802036481,13.28825689,2743.8,2742.3,0.9126415]
[1769802036683,13.28825689,2743.8,2742.5,0.91155604]
[1769802037014,1.33906569,2743.7,2742.5,0.91155604]
[1769802037315,12.90213321,2744.2,2742.7,0.91151052]
[1769802037517,0.1024,2743.9,2742.3,0.91264351]
[1769802037721,13.00453321,2743.9,2742.3,0.91264351]
[1769802038083,13.00453321,2743.9,2742.2,4.40957404]
[1769802038394,13.00453321,2743.9,2742.2,0.9116763]
[1769802038605,12.90213321,2743.7,2742.2,0.9116763]
[1769802038804,12.90213321,2743.7,2742.2,0.91167167]
[1769802039286,12.90213321,2743.5,2742.1,0.0191415]
[1769802039627,12.90213321,2743.3,2742.1,0.0191415]
[1769802039830,12.90213321,2743.1,2742.1,0.0191415]
[1769802041132,12.90213321,2743.1,2741.3,0.91196182]
[1769802041429,12.90213321,2742.9,2741.2,3.6480126]
[1769802041628,13.81361053,2742.8,2741.1,0.91204261]
[1769802041829,0.91147732,2742.8,2741.1,14.78877026]
[1769802042031,0.91146797,2742.9,2741.1,14.78877026]
[1769802042393,0.91146797,2742.9,2742.3,0.001]
[1769802042629,0.91134441,2743.2,2741.1,14.78877026]
[1769802043195,3.64521928,2743.4,2741.1,14.78877026]
[1769802043699,12.90213321,2743.5,2741.3,13.87672765]
[1769802044024,12.90213321,2743.5,2741.1,0.91204261]
[1769802044025,1.6549176,2743.4,2741.4,14.63972765]
[1769802045302,0.002,2743.6,2741.5,17.71672765]
[1769802045623,0.002,2743.6,2741.8,13.87672765]
[1769802046399,0.002,2743.6,2741.9,0.2335703]
[1769802046600,2.82811495,2744.4,2742.2,13.87672765]
[1769802046844,2.82811495,2744.4,2742.4,13.87672765]
[1769802046845,0.91096135,2744.4,2742.4,13.87672765]
[1769802047729,13.9173132,2744.9,2742.6,13.87672765]
[1769802047933,13.9173132,2744.9,2742.7,0.763]
[1769802048698,1.01517999,2744.9,2742.7,14.63972765]
[1769802048874,13.8149132,2744.9,2742.7,14.63972765]
[1769802049016,1.74580332,2744.8,2742.7,14.63972765]
[1769802049669,0.91084635,2744.7,2742.9,13.87672765]
[1769802050352,13.81297956,2744.7,2743.0,0.763]
[1769802050913,0.91084635,2744.7,2743.0,14.63972765]
[1769802051576,0.002,2744.9,2743.0,14.63972765]
[1769802051777,0.002,2744.9,2743.2,13.87672765]
[1769802053250,0.002,2744.9,2743.2,17.87672765]
[1769802053449,0.002,2744.9,2743.3,14.63972765]
[1769802053949,0.002,2744.9,2743.5,13.87672765]
[1769802054154,12.90413321,2744.9,2743.4,0.91127797]
[1769802054355,1.29041332,2744.8,2743.5,0.763]
[1769802054718,0.002,2744.9,2743.5,0.763]
[1769802054924,12.90413321,2744.9,2743.4,0.91127797]
[1769802055120,0.002,2744.5,2742.5,13.87772765]
[1769802055326,12.90413321,2744.5,2743.2,0.91133188]
[1769802055651,12.90413321,2744.5,2743.1,0.763]
[1769802055652,12.90413321,2744.5,2743.3,0.91131032]
[1769802055956,0.002,2744.5,2743.2,3.64537269]
[1769802057630,0.002,2744.5,2742.8,3.64580284]
[1769802057847,12.90413321,2744.5,2743.0,0.91139141]
[1769802058050,12.90213321,2744.3,2742.7,0.763]
[1769802058435,2.20135924,2744.4,2742.7,14.63972765]
[1769802059732,0.91094592,2744.4,2742.7,14.63972765]
[1769802060151,0.002,2744.5,2742.8,14.78820497]
[1769802061063,0.002,2744.5,2742.8,18.62820497]
[1769802061361,0.002,2744.5,2742.9,14.63972765]
[1769802062129,0.002,2744.5,2743.0,18.62813851]
[1769802062327,0.002,2744.5,2743.4,13.87672765]
[1769802062631,0.002,2744.7,2743.6,13.87672765]
[1769802063244,0.002,2744.7,2743.1,13.87672765]
[1769802064261,0.002,2744.7,2743.3,18.62803884]
[1769802064471,0.002,2744.7,2743.4,0.763]
[1769802064683,0.002,2744.7,2743.4,4.603]
[1769802064842,0.002,2744.7,2743.6,13.87672765]
[1769802065041,0.002,2744.9,2743.7,3.84]
[1769802065267,0.002,2744.9,2743.8,13.87672765]
[1769802066275,0.002,2744.9,2743.6,4.75121154]
[1769802067674,0.002,2745.5,2743.9,13.53969042]
[1769802067847,0.002,2745.5,2744.0,17.37969042]
[1769802068174,0.002,2744.7,2744.1,0.763]
[1769802068470,0.002,2744.7,2744.2,0.91101231]
[1769802068850,0.002,2745.5,2744.2,14.45070273]
[1769802069045,0.002,2745.5,2744.2,0.91101231]
[1769802069251,12.8736556,2745.3,2744.1,0.91102237]
[1769802070086,12.8736556,2745.3,2743.8,0.91112683]
[1769802070249,12.8736556,2745.3,2743.9,0.91110982]
[1769802070581,13.78236923,2745.1,2743.9,14.5]
[1769802070781,13.78236923,2745.1,2743.6,0.91120264]
[1769802071647,13.78236923,2745.1,2743.2,0.001]
[1769802071955,12.8716556,2744.9,2743.2,0.001]
[1769802072159,12.8716556,2744.9,2743.3,0.91130969]
[1769802072356,0.91087954,2744.6,2743.2,0.91234441]
[1769802072557,12.8716556,2744.5,2743.2,0.91234441]
[1769802072750,12.8716556,2744.5,2743.2,0.001]
[1769802073149,12.8716556,2744.5,2743.2,14.501]
[1769802073968,0.91087954,2744.6,2743.2,14.501]
[1769802074366,3.64351818,2744.7,2743.3,0.91131119]